[Event "XIX Sants Open 2017"]
[Site "Cotxeres de Sants"]
[Date "2017.08.26"]
[Round "9"]
[White "Calonge Fabregat, Marc"]
[Black "Zverev, Lev"]
[Result "1-0"]
[ECO "A00"]
[WhiteElo "1885"]
[BlackElo "1372"]
[Annotator "NA"]
[PlyCount "81"]
[EventDate "2017.??.??"]
[EventType "swiss"]
[EventCountry "ESP"]
[SourceTitle "playchess.com"]
[Source "ChessBase"]
[SourceQuality "1"]
[TimeControl "40/5400+30:1800+30"]

1. e3 {[%emt 0:00:00]} d5 {[%emt 0:00:15]} 2. c4 {[%emt 0:00:45]} e6 {[%emt 0:00:24]} 3. Nf3 {[%emt 0:00:44]} Nf6 {[%emt 0:00:10]} 4. d4 {[%emt 0:02:25]} Be7 {[%emt 0:00:17]} 5. Nc3 {[%emt 0:01:54]} O-O {[%emt 0:00:12]} 6. Be2 {[%emt 0:01:09]} b6 {[%emt 0:00:10]} 7. b3 {[%emt 0:01:36]} Bb7 {[%emt 0:01:26]} 8. O-O {[%emt 0:00:25]} Nbd7 {[%emt 0:00:24]} 9. Bb2 {[%emt 0:01:17]} c5 {[%emt 0:00:29]} 10. Rc1 {[%emt 0:03:35]} Rc8 {[%emt 0:00:29]} 11. Qd3 {[%emt 0:13:16]} dxc4 {[%emt 0:01:30]} 12. bxc4 {[%emt 0:00:20]} cxd4 {[%emt 0:00:36]} 13. exd4 {[%emt 0:01:27]} Bxf3 {[%emt 0:04:42]} 14. Qxf3 {[%emt 0:00:49]} e5 {[%emt 0:00:49]} 15. Nb5 {[%emt 0:07:19]} a6 {[%emt 0:01:40]} 16. dxe5 {[%emt 0:02:59]} axb5 {[%emt 0:02:45]} 17. exf6 {[%emt 0:00:08]} Bxf6 {[%emt 0:00:25]} 18. Bxf6 {[%emt 0:00:24]} Nxf6 {[%emt 0:00:16]} 19. cxb5 {[%emt 0:08:35]} Rxc1 {[%emt 0:00:09]} 20. Rxc1 {[%emt 0:00:11]} Qd2 {[%emt 0:00:08]} 21. Qe3 {[%emt 0:11:43]} Qxa2 {[%emt 0:00:21]} 22. Bf1 {[%emt 0:04:50]} Qb2 {[%emt 0:01:23]} 23. Rc6 {[%emt 0:06:43]} Nd5 {[%emt 0:03:42]} 24. Qe4 {[%emt 0:04:47]} Nf6 {[%emt 0:01:32]} 25. Qe3 {[%emt 0:01:52]} Nd5 {[%emt 0:01:14]} 26. Qe4 {[%emt 0:02:04]} Nf6 {[%emt 0:00:08]} 27. Qc4 {[%emt 0:00:45]} Nd7 {[%emt 0:01:03]} 28. Rd6 {[%emt 0:03:55]} Ne5 {[%emt 0:00:20]} 29. Qc7 {[%emt 0:05:53]} g6 {[%emt 0:06:05]} 30. Rd8 {[%emt 0:02:47]} Qa1 {[%emt 0:03:06]} 31. Rxf8+ {[%emt 0:01:57]} Kxf8 {[%emt 0:00:10]} 32. Qd8+ {[%emt 0:00:15]} Kg7 {[%emt 0:00:09]} 33. Qxb6 {[%emt 0:00:02]} Nc4 {[%emt 0:00:44]} 34. Qd8 {[%emt 0:03:50]} Qc3 {[%emt 0:02:51]} 35. Qc7 {[%emt 0:02:49]} Qd4 {[%emt 0:01:16]} 36. Qxc4 {[%emt 0:00:13]} Qxc4 {[%emt 0:00:08]} 37. Bxc4 {[%emt 0:00:04]} Kf6 {[%emt 0:00:11]} 38. b6 {[%emt 0:00:11]} Kg5 {[%emt 0:00:07]} 39. b7 {[%emt 0:00:04]} Kh4 {[%emt 0:00:24]} 40. b8=Q {[%emt 0:00:00]} h5 {[%emt 0:00:36]} 41. Qf4# 1-0

[Event "XIX Sants Open 2017"]
[Site "Cotxeres de Sants"]
[Date "2017.08.26"]
[Round "9"]
[White "Martinez Torras, Pol"]
[Black "Forte Esparza, Miguel"]
[Result "1/2-1/2"]
[ECO "A58"]
[WhiteElo "1647"]
[BlackElo "1602"]
[Annotator "NA"]
[PlyCount "52"]
[EventDate "2017.??.??"]
[EventType "swiss"]
[EventCountry "ESP"]
[SourceTitle "playchess.com"]
[Source "ChessBase"]
[SourceQuality "1"]
[TimeControl "40/5400+30:1800+30"]

1. d4 {[%emt 0:00:00]} Nf6 {[%emt 0:16:21]} 2. c4 {[%emt 0:00:00]} c5 {[%emt 0:00:07]} 3. d5 {[%emt 0:01:02]} b5 {[%emt 0:00:09]} 4. cxb5 {[%emt 0:00:07]} a6 {[%emt 0:00:04]} 5. bxa6 {[%emt 0:00:12]} g6 {[%emt 0:00:05]} 6. Nc3 {[%emt 0:01:48]} Bg7 {[%emt 0:00:09]} 7. g3 {[%emt 0:01:46]} O-O {[%emt 0:01:26]} 8. Nf3 {[%emt 0:02:36]} d6 {[%emt 0:02:38]} 9. Bg2 {[%emt 0:03:52]} Bxa6 {[%emt 0:00:07]} 10. O-O {[%emt 0:00:20]} Nbd7 {[%emt 0:00:19]} 11. Re1 {[%emt 0:02:31]} Qa5 {[%emt 0:00:50]} 12. h3 {[%emt 0:03:30]} Rfb8 {[%emt 0:00:28]} 13. Qc2 {[%emt 0:01:47]} Nb6 {[%emt 0:08:45]} 14. e4 {[%emt 0:05:24]} Bc4 {[%emt 0:15:22]} 15. Nd2 {[%emt 0:04:46]} Nfd7 {[%emt 0:02:52]} 16. Bf1 {[%emt 0:06:06]} Ne5 {[%emt 0:16:09]} 17. Bxc4 {[%emt 0:09:39]} Nbxc4 {[%emt 0:04:56]} 18. Kg2 {[%emt 0:11:39]} Nxd2 {[%emt 0:03:13]} 19. Bxd2 {[%emt 0:00:37]} Nc4 {[%emt 0:00:49]} 20. Reb1 {[%emt 0:12:47]} Nxd2 {[%emt 0:05:36]} 21. Qxd2 {[%emt 0:00:02]} Bxc3 {[%emt 0:00:10]} 22. bxc3 {[%emt 0:01:50]} Rxb1 {[%emt 0:00:10]} 23. Rxb1 {[%emt 0:00:07]} Qxa2 {[%emt 0:00:06]} 24. Rb2 {[%emt 0:11:56]} Qc4 {[%emt 0:01:59]} 25. Qe3 {[%emt 0:02:18]} Ra1 {[%emt 0:03:47]} 26. Kf3 {[%emt 0:04:30]} Kg7 {[%emt 0:04:19]} 1/2-1/2

[Event "XIX Sants Open 2017"]
[Site "Cotxeres de Sants"]
[Date "2017.08.26"]
[Round "9"]
[White "Ferre Navarro, Joan"]
[Black "Lopez Oliva, Victor"]
[Result "0-1"]
[ECO "A48"]
[WhiteElo "1594"]
[BlackElo "1530"]
[Annotator "NA"]
[PlyCount "80"]
[EventDate "2017.??.??"]
[EventType "swiss"]
[EventCountry "ESP"]
[SourceTitle "playchess.com"]
[Source "ChessBase"]
[SourceQuality "1"]
[TimeControl "40/5400+30:1800+30"]

1. d4 {[%emt 0:00:00]} Nf6 {[%emt 0:00:05]} 2. Nf3 {[%emt 0:00:00]} g6 {[%emt 0:00:46]} 3. Bf4 {[%emt 0:00:00]} d6 {[%emt 0:02:28]} 4. e3 {[%emt 0:00:05]} Bg7 {[%emt 0:00:22]} 5. Bd3 {[%emt 0:00:24]} O-O {[%emt 0:00:30]} 6. h3 {[%emt 0:00:15]} Nbd7 {[%emt 0:00:51]} 7. c4 {[%emt 0:03:47]} Re8 {[%emt 0:01:20]} 8. Nc3 {[%emt 0:01:16]} e5 {[%emt 0:00:19]} 9. dxe5 {[%emt 0:03:42]} dxe5 {[%emt 0:00:10]} 10. Bg5 {[%emt 0:00:15]} h6 {[%emt 0:05:36]} 11. Bxf6 {[%emt 0:00:35]} Nxf6 {[%emt 0:01:11]} 12. Bc2 {[%emt 0:01:32]} e4 {[%emt 0:10:14]} 13. Qxd8 {[%emt 0:06:54]} Rxd8 {[%emt 0:00:18]} 14. Nxe4 {[%emt 0:00:15]} Nxe4 {[%emt 0:00:07]} 15. Bxe4 {[%emt 0:00:16]} Bxb2 {[%emt 0:00:18]} 16. Rb1 {[%emt 0:00:30]} Bc3+ {[%emt 0:00:51]} 17. Ke2 {[%emt 0:00:10]} Be6 {[%emt 0:09:19]} 18. Bd5 {[%emt 0:04:10]} Bxd5 {[%emt 0:02:24]} 19. cxd5 {[%emt 0:00:08]} Rab8 {[%emt 0:00:56]} 20. Rhd1 {[%emt 0:03:06]} c6 {[%emt 0:12:09]} 21. Rb3 {[%emt 0:11:05]} Ba5 {[%emt 0:04:27]} 22. d6 {[%emt 0:04:02]} f6 {[%emt 0:03:02]} 23. a3 {[%emt 0:02:48]} Rd7 {[%emt 0:05:40]} 24. e4 {[%emt 0:00:45]} Rbd8 {[%emt 0:01:09]} 25. Rbd3 {[%emt 0:02:47]} Bb6 {[%emt 0:01:30]} 26. e5 {[%emt 0:00:16]} Bc5 {[%emt 0:01:12]} 27. e6 {[%emt 0:01:50]} Rxd6 {[%emt 0:00:26]} 28. e7 {[%emt 0:00:11]} Re6+ {[%emt 0:00:45]} 29. Re3 {[%emt 0:06:44]} Rxe3+ {[%emt 0:01:02]} 30. fxe3 {[%emt 0:00:20]} Bxe7 {[%emt 0:00:17]} 31. Rxd8+ {[%emt 0:01:39]} Bxd8 {[%emt 0:00:08]} 32. Nd4 {[%emt 0:01:02]} Bb6 {[%emt 0:01:59]} 33. Kd3 {[%emt 0:01:13]} Bxd4 {[%emt 0:03:08]} 34. Kxd4 {[%emt 0:00:13]} b6 {[%emt 0:00:19]} 35. g3 {[%emt 0:00:50]} Kf7 {[%emt 0:00:12]} 36. g4 {[%emt 0:00:54]} Ke6 {[%emt 0:00:45]} 37. Ke4 {[%emt 0:01:19]} a5 {[%emt 0:01:54]} 38. Kd4 {[%emt 0:00:21]} Kd6 {[%emt 0:00:11]} 39. h4 {[%emt 0:01:32]} b5 {[%emt 0:00:49]} 40. Ke4 {[%emt 0:00:00]} b4 {[%emt 0:00:15]} 0-1

[Event "XIX Sants Open 2017"]
[Site "Cotxeres de Sants"]
[Date "2017.08.26"]
[Round "9"]
[White "Segura Ruiz, Carlos"]
[Black "Siegel, Rainer"]
[Result "1/2-1/2"]
[ECO "A01"]
[WhiteElo "1414"]
[BlackElo "1551"]
[Annotator "NA"]
[PlyCount "62"]
[EventDate "2017.??.??"]
[EventType "swiss"]
[EventCountry "ESP"]
[SourceTitle "playchess.com"]
[Source "ChessBase"]
[SourceQuality "1"]
[TimeControl "40/5400+30:1800+30"]

1. b3 d6 2. e3 Nf6 3. Bb2 e5 4. Bb5+ Nbd7 5. d4 e4 6. d5 Be7 7. Ne2 a6 8. Bxd7+ Bxd7 9. c4 O-O 10. Ng3 Re8 11. Nc3 Bf8 12. Qc2 Qe7 13. Rd1 b5 14. Rd4 b4 15. Ncxe4 Nxe4 16. Qxe4 Qg5 17. Qf3 g6 18. Ne4 Rxe4 19. Rxe4 f5 20. Rd4 Re8 21. O-O Bg7 22. Rd2 Bxb2 23. Rxb2 Re4 24. Rd2 Rh4 25. Rfd1 Qh6 26. Qg3 Rg4 27. Qh3 Rh4 28. Qg3 Rg4 29. Qh3 Rh4 30. Qg3 Rg4 31. Qh3 Qxh3 1/2-1/2

[Event "XIX Sants Open 2017"]
[Site "Cotxeres de Sants"]
[Date "2017.08.27"]
[Round "10"]
[White "Vargas Drechsler, Carlos"]
[Black "Garcia Ruiz, Adrian"]
[Result "0-1"]
[ECO "E06"]
[WhiteElo "1913"]
[BlackElo "1940"]
[Annotator "NA RC"]
[PlyCount "48"]
[EventDate "2017.??.??"]
[EventType "swiss"]
[EventCountry "ESP"]
[SourceTitle "playchess.com"]
[Source "ChessBase"]
[SourceQuality "1"]
[TimeControl "40/5400+30:1800+30"]

1. d4 Nf6 2. Nf3 e6 3. c4 d5 4. g3 Be7 5. Bg2 O-O 6. O-O dxc4 7. Ne5 c5 8. Be3 Nd5 9. Nc3 Nc6 10. Nxd5 exd5 11. Nxc6 bxc6 12. dxc5 Qa5 13. Qc2 Bxc5 14. Bxc5 Qxc5 15. Rac1 Re8 16. Rfd1 Rb8 17. b3 Ba6 18. e4 Rbd8 19. Bf1 h6 20. exd5 cxd5 21. bxc4 dxc4 22. Rxd8 Rxd8 23. Bxc4 Bxc4 24. Qxc4 Rd1+ 0-1

[Event "XIX Sants Open 2017"]
[Site "Cotxeres de Sants"]
[Date "2017.08.27"]
[Round "10"]
[White "Urgel Yvorra, Marc"]
[Black "Casset Bello, Elena"]
[Result "0-1"]
[ECO "B14"]
[WhiteElo "1857"]
[BlackElo "1936"]
[Annotator "NA RC"]
[PlyCount "64"]
[EventDate "2017.??.??"]
[EventType "swiss"]
[EventCountry "ESP"]
[SourceTitle "playchess.com"]
[Source "ChessBase"]
[SourceQuality "1"]
[TimeControl "40/5400+30:1800+30"]

1. e4 {[%emt 0:01:47]} c6 {[%emt 0:00:47]} 2. d4 {[%emt 0:00:18]} d5 {[%emt 0:00:12]} 3. exd5 {[%emt 0:00:02]} cxd5 {[%emt 0:00:11]} 4. c4 {[%emt 0:00:04]} Nf6 {[%emt 0:03:11]} 5. Nc3 {[%emt 0:00:08]} g6 {[%emt 0:00:15]} 6. Bg5 {[%emt 0:13:02]} Bg7 {[%emt 0:10:20] B14: Caro-Kann: Panov-Botvinnik Attack with 5...e6 and 5...g6} (6... Ne4 7. Nxe4 dxe4 8. Ne2 Bg7 9. Qd2 O-O 10. Rd1 Nc6 11. Be3 Qc7 12. Nc3 Rd8 13. Nb5 Qb8 14. d5 Ne5 15. Be2 a6 {0-1 (40) Ynojosa Aponte,F (2448)-Almasi,Z (2690) Tromsoe 2014}) 7. Qd2 {[%emt 0:12:56]} Nc6 {[%emt 0:05:40]} 8. Nf3 {[%emt 0:04:58]} Ne4 {[%emt 0:02:53]} 9. Nxe4 {[%emt 0:03:48]} dxe4 {[%emt 0:00:22]} 10. d5 {[%emt 0:00:32]} exf3 {[%emt 0:01:15]} 11. dxc6 {[%emt 0:00:14]} Qxd2+ {[%emt 0:00:30]} 12. Bxd2 $146 {[%emt 0:05:58]} ({Predecessor:} 12. Kxd2 h6 13. Bf4 bxc6 14. gxf3 Bf5 15. Re1 Bxb2 16. Bd6 O-O-O {0-1 (16) Moen,A (2235)-Hansen,T (2259) Gausdal 1999}) 12... bxc6 {[%emt 0:00:07]} 13. O-O-O {[%emt 0:00:22]} O-O {[%emt 0:05:02]} 14. Be3 {[%emt 0:16:59]} a5 {[%emt 0:04:54]} 15. b3 {[%emt 0:06:26]} Bg4 {[%emt 0:06:19]} 16. g3 {[%emt 0:05:12]} a4 {[%emt 0:03:18]} 17. b4 {[%emt 0:01:57]} a3 {[%emt 0:03:01]} 18. Kc2 {[%emt 0:00:46]} Rfb8 {[%emt 0:05:11]} 19. Bc5 {[%emt 0:04:21]} Rb7 $11 {[%emt 0:05:40]} ({Black should play} 19... e5 $17 20. Bd3 Be6) 20. Bd3 $1 {[%emt 0:00:27]} Rab8 {[%emt 0:02:13]} 21. Be4 {[%emt 0:01:52]} Bf5 {[%emt 0:03:54]} 22. Bxf5 {[%emt 0:00:32]} gxf5 {[%emt 0:00:01]} 23. Rd3 {[%emt 0:01:14]} Bb2 {[%emt 0:01:37]} 24. Rhd1 {[%emt 0:01:29]} e5 {[%emt 0:06:23]} 25. Rxf3 {[%emt 0:03:16]} Bd4 {[%emt 0:04:31]} 26. Bd6 {[%emt 0:04:49]} Ra8 {[%emt 0:04:10]} 27. Rxf5 {[%emt 0:03:15]} c5 {[%emt 0:03:58]} 28. Bxe5 {[%emt 0:03:09]} Rxb4 {[%emt 0:03:17]} 29. Bxd4 {[%emt 0:03:03]} cxd4 {[%emt 0:00:25]} 30. Rb1 {[%emt 0:01:22]} d3+ {[%emt 0:00:56]} 31. Kc1 {[%emt 0:00:40]} d2+ {[%emt 0:00:07]} 32. Kc2 {[%emt 0:00:21]} Rxb1 {[%emt 0:00:11]} 0-1

[Event "XIX Sants Open 2017"]
[Site "Cotxeres de Sants"]
[Date "2017.08.27"]
[Round "10"]
[White "Abdelkader Garstka, Adam"]
[Black "Segura Ruiz, Carlos"]
[Result "1-0"]
[ECO "B10"]
[WhiteElo "1612"]
[BlackElo "1414"]
[Annotator "NA RC"]
[PlyCount "97"]
[EventDate "2017.??.??"]
[EventType "swiss"]
[EventCountry "ESP"]
[SourceTitle "playchess.com"]
[Source "ChessBase"]
[SourceQuality "1"]
[TimeControl "40/5400+30:1800+30"]

1. e4 c6 2. Nf3 d5 3. exd5 cxd5 4. d4 Bg4 5. Be2 e6 6. h3 Bh5 7. c3 a6 8. O-O b5 9. Re1 Nf6 10. Nbd2 Nc6 11. Nb3 Be7 12. Bf4 O-O 13. Ne5 Bxe2 14. Qxe2 Qc8 15. Nd2 Na5 16. Rec1 Nc4 17. Nexc4 dxc4 18. b3 Nd5 19. Be3 cxb3 20. Nxb3 Nb6 21. Rab1 Nc4 22. Nd2 Rb8 23. Bf4 Nxd2 24. Qxd2 Rb6 25. c4 Rc6 26. cxb5 axb5 27. Rxb5 Qa6 28. Qa5 Rxc1+ 29. Bxc1 Qc6 30. Bf4 Bd6 31. d5 exd5 32. Bxd6 Qxd6 33. Rxd5 Qc6 34. Qd2 h6 35. Rd8 Rxd8 36. Qxd8+ Kh7 37. Qd3+ g6 38. Qd2 Kg7 39. g3 Qe6 40. Kh2 Qb6 41. a4 Qa7 42. a5 Kh7 43. h4 h5 44. Kg1 Kg8 45. Qd8+ Kg7 46. Qb6 Qe7 47. a6 Qe1+ 48. Kh2 g5 49. Qe3 1-0

[Event "XIX Sants Open 2017"]
[Site "Cotxeres de Sants"]
[Date "2017.08.27"]
[Round "10"]
[White "Siegel, Rainer"]
[Black "Forte Esparza, Miguel"]
[Result "1-0"]
[ECO "B07"]
[WhiteElo "1551"]
[BlackElo "1602"]
[Annotator "NA RC"]
[PlyCount "93"]
[EventDate "2017.??.??"]
[EventType "swiss"]
[EventCountry "ESP"]
[SourceTitle "playchess.com"]
[Source "ChessBase"]
[SourceQuality "1"]
[TimeControl "40/5400+30:1800+30"]

1. d3 {[%emt 0:00:38]} g6 {[%emt 0:06:53]} 2. Nd2 {[%emt 0:03:07]} c5 {[%emt 0:00:10]} 3. Ngf3 {[%emt 0:00:50]} Bg7 {[%emt 0:00:10]} 4. e4 {[%emt 0:00:25]} Nf6 {[%emt 0:00:39]} 5. Be2 {[%emt 0:05:02]} d5 {[%emt 0:02:28]} 6. c3 {[%emt 0:03:01]} dxe4 {[%emt 0:00:39]} 7. dxe4 {[%emt 0:00:17]} O-O {[%emt 0:00:18]} 8. O-O {[%emt 0:00:28]} Nc6 {[%emt 0:00:37]} 9. Qc2 {[%emt 0:00:46]} a6 {[%emt 0:05:55]} 10. Nb3 {[%emt 0:02:09]} b6 {[%emt 0:01:03]} 11. Bg5 {[%emt 0:01:46]} Re8 {[%emt 0:05:21]} 12. Rad1 {[%emt 0:02:51]} Qc7 {[%emt 0:00:32]} 13. Rfe1 {[%emt 0:02:14]} Bb7 {[%emt 0:01:32]} 14. Bh4 {[%emt 0:20:53]} Nd8 {[%emt 0:18:27]} 15. e5 {[%emt 0:08:45]} Nd7 {[%emt 0:04:32]} 16. Bg3 {[%emt 0:01:21]} e6 {[%emt 0:03:29]} 17. Nbd2 {[%emt 0:02:02]} Nc6 {[%emt 0:04:02]} 18. Nc4 {[%emt 0:01:18]} Ndxe5 {[%emt 0:14:05]} 19. Nfxe5 {[%emt 0:07:09]} Nxe5 {[%emt 0:08:07]} 20. Nd6 {[%emt 0:10:58]} Red8 {[%emt 0:03:45]} 21. Nxb7 {[%emt 0:00:55]} Qxb7 {[%emt 0:00:55]} 22. Bxe5 {[%emt 0:02:51]} Bxe5 {[%emt 0:02:48]} 23. Bf3 {[%emt 0:02:22]} Qc7 {[%emt 0:00:20]} 24. Bxa8 {[%emt 0:01:17]} Rxa8 {[%emt 0:00:06]} 25. g3 {[%emt 0:06:59]} Bg7 {[%emt 0:01:37]} 26. Qd3 {[%emt 0:00:37]} b5 {[%emt 0:01:38]} 27. Qd7 {[%emt 0:01:39]} Qxd7 {[%emt 0:03:38]} 28. Rxd7 {[%emt 0:00:05]} c4 {[%emt 0:00:16]} 29. Red1 {[%emt 0:00:29]} Bf6 {[%emt 0:00:15]} 30. Rb7 {[%emt 0:00:24]} Rf8 {[%emt 0:03:20]} 31. Ra7 {[%emt 0:01:42]} b4 {[%emt 0:00:12]} 32. Rxa6 {[%emt 0:00:50]} bxc3 {[%emt 0:00:28]} 33. bxc3 {[%emt 0:00:19]} Bxc3 {[%emt 0:00:31]} 34. Rc1 {[%emt 0:00:40]} Be5 {[%emt 0:02:58]} 35. Rxc4 {[%emt 0:00:17]} Rb8 {[%emt 0:00:43]} 36. Rac6 {[%emt 0:01:14]} Rb1+ {[%emt 0:02:50]} 37. Kg2 {[%emt 0:00:54]} Ra1 {[%emt 0:00:12]} 38. a4 {[%emt 0:00:33]} Kg7 {[%emt 0:00:18]} 39. R6c5 {[%emt 0:01:01]} Bf6 {[%emt 0:01:05]} 40. Re4 {[%emt 0:00:00]} Bd8 {[%emt 0:01:35]} 41. Rc8 {[%emt 0:04:29]} Bb6 {[%emt 0:01:42]} 42. Rc2 {[%emt 0:00:19]} Kf6 {[%emt 0:04:20]} 43. Kf3 {[%emt 0:01:26]} h5 {[%emt 0:04:57]} 44. h4 {[%emt 0:01:05]} Ke7 {[%emt 0:04:40]} 45. Rc6 {[%emt 0:01:46]} Ra3+ {[%emt 0:01:51]} 46. Kg2 {[%emt 0:00:53]} Bd8 {[%emt 0:00:40]} 47. Ra6 {[%emt 0:01:04]} 1-0

[Event "XIX Sants Open 2017"]
[Site "Cotxeres de Sants"]
[Date "2017.08.27"]
[Round "10"]
[White "Lopez Oliva, Victor"]
[Black "Martinez Gamiz, Marc"]
[Result "1/2-1/2"]
[ECO "B10"]
[WhiteElo "1530"]
[BlackElo "1318"]
[Annotator "NA RC"]
[PlyCount "76"]
[EventDate "2017.??.??"]
[EventType "swiss"]
[EventCountry "ESP"]
[SourceTitle "playchess.com"]
[Source "ChessBase"]
[SourceQuality "1"]
[TimeControl "40/5400+30:1800+30"]

1. e4 {[%emt 0:00:00]} c6 {[%emt 0:00:11]} 2. Nc3 {[%emt 0:00:00]} d5 {[%emt 0:00:21]} 3. Nf3 {[%emt 0:00:06]} Nf6 {[%emt 0:00:20]} 4. exd5 cxd5 {[%emt 0:00:31]} 5. d4 {[%emt 0:31:06]} Bg4 {[%emt 0:01:16]} 6. Be2 {[%emt 0:02:08]} e6 {[%emt 0:00:59]} 7. O-O {[%emt 0:00:26]} Nc6 {[%emt 0:01:39]} 8. h3 {[%emt 0:01:05]} Bxf3 {[%emt 0:01:29]} 9. Bxf3 {[%emt 0:00:06]} Qb6 {[%emt 0:02:52]} 10. Ne2 {[%emt 0:03:19]} Be7 {[%emt 0:04:48]} 11. c3 {[%emt 0:02:28]} O-O {[%emt 0:00:27]} 12. Qc2 {[%emt 0:02:13]} Rac8 {[%emt 0:00:53]} 13. Bf4 {[%emt 0:00:38]} Nxd4 {[%emt 0:06:44]} 14. Nxd4 {[%emt 0:06:21]} Qxd4 {[%emt 0:00:06]} 15. Be3 {[%emt 0:01:13]} Qc4 {[%emt 0:00:20]} 16. Be2 {[%emt 0:02:54]} Qc7 {[%emt 0:00:19]} 17. Rac1 {[%emt 0:13:19]} Bc5 {[%emt 0:03:25]} 18. Qd3 {[%emt 0:09:39]} Bxe3 {[%emt 0:00:44]} 19. Qxe3 {[%emt 0:00:06]} Qc5 {[%emt 0:00:30]} 20. Qxc5 {[%emt 0:06:55]} Rxc5 {[%emt 0:01:28]} 21. c4 {[%emt 0:00:10]} Rfc8 {[%emt 0:00:11]} 22. b3 {[%emt 0:00:21]} b5 {[%emt 0:00:09]} 23. Rfd1 {[%emt 0:00:53]} g5 {[%emt 0:02:56]} 24. b4 {[%emt 0:01:05]} R5c7 {[%emt 0:00:27]} 25. c5 {[%emt 0:00:26]} a6 {[%emt 0:01:22]} 26. a3 {[%emt 0:00:46]} Ne8 {[%emt 0:01:13]} 27. Ra1 {[%emt 0:00:32]} Rc6 {[%emt 0:01:07]} 28. Ra2 {[%emt 0:00:22]} Nc7 29. Rda1 {[%emt 0:01:25]} a5 {[%emt 0:02:29]} 30. Rd2 {[%emt 0:02:51]} Ra8 {[%emt 0:01:02]} 31. Rb1 {[%emt 0:01:35]} axb4 {[%emt 0:01:45]} 32. axb4 {[%emt 0:00:08]} f5 {[%emt 0:01:05]} 33. Rd3 {[%emt 0:04:43]} e5 {[%emt 0:01:44]} 34. Rg3 {[%emt 0:00:40]} h6 {[%emt 0:00:21]} 35. h4 {[%emt 0:00:34]} Rg6 {[%emt 0:00:15]} 36. hxg5 {[%emt 0:05:17]} hxg5 {[%emt 0:00:06]} 37. Rh3 {[%emt 0:01:04]} g4 {[%emt 0:00:17]} 38. Rh5 {[%emt 0:00:14]} Rf8 {[%emt 0:00:23]} 1/2-1/2